Cogmind - Beta 15 *** ADVENTURER MODE // 2025.07.19 @ 23:21:42 Player: eumesmo Result: Self-destructed Performance ------------- Evolutions (5) 2500 Regions Visited (5) 1000 Robots Destroyed (14) 70 Value Destroyed (745) 745 Prototype IDs (0) 0 Alien Tech Used (0) 0 Bonus (491) 491 TOTAL SCORE: 4806 Bonus ------- Pacifist 491 Cogmind --------- Core Integrity 303/1000 Matter 300/300 Energy 95/100 System Corruption 0% Temperature Cool (1) Movement Flying (35) Location -5/Upper Caves Parts ------- > --- POWER (2) -------- (None) > --- PROPULSION (4) --- VTOL Module > --- UTILITY (9) ------ Enhanced Optical Array Advanced Signal Interpreter Advanced Melee Analysis Suite Utility Shielding Improved Corruption Screen Improved Corruption Screen Improved Corruption Screen > --- WEAPON (2) ------- (None) > --- INVENTORY (5) ---- Makeshift Terrain Scan Processor Advanced Melee Analysis Suite Improved Corruption Screen Peak State ------------ > --- POWER ------------ Micro Fission Core > --- PROPULSION ------- Flexi-carbon Leg Armored Leg > --- UTILITY ---------- Advanced Heat Sink Medium Storage Unit Enhanced Optical Array Advanced Signal Interpreter Advanced Melee Analysis Suite Improved Medium Armor Plating Improved Corruption Screen Improved Corruption Screen Improved Corruption Screen > --- WEAPON ----------- Heavy Laser Makeshift Axe > --- INVENTORY -------- Improved Treads Advanced Signal Interpreter Makeshift Terrain Scan Processor Advanced Melee Analysis Suite Utility Shielding Improved Corruption Screen Improved Corruption Screen Heavy Laser [Rating: 70] Favorites ----------- Power Light Ion Engine Engine Light Ion Engine Power Core Micro Fission Core Propulsion Light Treads Treads Light Treads Leg Armored Leg Hover Unit Antigrav System Flight Unit VTOL Module Utility Improved Corruption Screen Device Improved Heat Sink Storage Small Storage Unit Processor Improved Corruption Screen Hackware Improved Hacking Suite Protection Hardened Light Armor Plating Weapon Salvaging Laser Energy Gun Salvaging Laser Launcher Grenade Launcher Slashing Weapon Makeshift Axe Build | -11 -10 -10 -7 -5 -5 ------- Run | Yrd Mat Sub Scr Fac Upp Slots Evolved 10 | . . . . 10 . Power 1 | . . . . 1 . Propulsion 2 | . . . . 2 . Utility 7 | . . . . 7 . Weapon . | . . . . . . Parts Attached 38 | 4 . 4 5 11 14 Power 5 | 1 . . . 1 3 Engine 3 | 1 . . . 1 1 Core 2 | . . . . . 2 Reactor . | . . . . . . Propulsion 8 | 2 . . 1 2 3 Treads 3 | 2 . . 1 . . Leg 3 | . . . . 2 1 Wheel . | . . . . . . Hover 1 | . . . . . 1 Flight 1 | . . . . . 1 Utility 15 | 1 . 2 1 8 3 Device 3 | . . 2 . . 1 Storage 2 | 1 . . . 1 . Processor 6 | . . . . 6 . Hackware 1 | . . . . 1 . Protection 3 | . . . 1 . 2 Artifact . | . . . . . . Weapon 10 | . . 2 3 . 5 Energy Gun 8 | . . 2 2 . 4 Energy Cannon . | . . . . . . Ballistic Gun . | . . . . . . Ballistic Cannon . | . . . . . . Launcher 1 | . . . 1 . . Special Weapon . | . . . . . . Impact Weapon . | . . . . . . Slashing Weapon 1 | . . . . . 1 Piercing Weapon . | . . . . . . Special Melee Weapon . | . . . . . . Unidentified Prototypes . | . . . . . . Parts Lost 20 | . . . . 4 16 Power 5 | . . . . 2 3 Propulsion 5 | . . . . 1 4 Utility 4 | . . . . . 4 Weapon 6 | . . . . 1 5 Highest Loss Streak 6 | . . . . 2 6 To Critical Strikes . | . . . . . . Average Backups 5 | 1 2 4 6 7 5 Power . | . 1 1 1 . . Propulsion . | . . . . 1 . Utility 3 | . . 1 3 5 4 Weapon . | . . 1 . . . Tool/Special . | . . . . . . Unused Backups 8 | . . . 1 . 7 Power . | . . . . . . Propulsion 2 | . . . 1 . 1 Utility 6 | . . . . . 6 Weapon . | . . . . . . Tool/Special . | . . . . . . Average Slot Usage (%) 81 | . 57 89 100 80 66 Engine 8 | . 14 14 14 8 . Treads 15 | . 28 28 28 10 . Leg 1 | . . . . . 3 Device 5 | . . 10 6 . 3 Storage 8 | . 14 14 14 5 2 Processor 16 | . . . . 32 35 Protection 3 | . . . 7 5 4 Energy Gun 11 | . . 21 20 5 3 Launcher 2 | . . . 7 3 . Slashing Weapon 1 | . . . . . 3 Peak Build Rating 70 | 4 4 9 16 62 70 Average Rating 32 | 3 4 7 13 53 57 On Entrance 15 | . 4 4 9 15 62 Naked Turns . | . . . . . . Heaviest Build 30 | 8 8 11 20 28 30 Greatest Support 48 | 40 40 40 48 48 36 Greatest Overweight (x) 2 | . . . . . 2 Average Overweight (x) . | . . . . . . Largest Inventory Capacity 10 | 8 8 8 8 10 10 Average Capacity 7 | 7 8 8 8 9 6 Most Carried 10 | 5 3 6 8 9 10 Average Carried 5 | 1 2 4 6 7 5 Final Capacity 10 | 8 8 8 8 10 5 Final Carried 7 | 1 3 5 5 7 3 Class Distribution -------------------- 66% | Mutant 18% | Scavenger-Mutant 15% | Hacker-Mutant Dominant Class ---------------- Mutant | -10/Materials Mutant | -10/Subcaves Mutant | -7/Scraptown Hacker-Mutant | -5/Factory Scavenger-Mutant | -5/Upper Caves Resources | -11 -10 -10 -7 -5 -5 ----------- Run | Yrd Mat Sub Scr Fac Upp Matter Collected 542 | 231 . 49 10 112 140 Remotely . | . . . . . . Salvage Created 783 | . . . . 217 566 Parts 26 | . . . . 6 20 Haulers Intercepted . | . . . . . . Recyclers Shooed . | . . . . . . Parts Field Recycled . | . . . . . . Retrieved Matter . | . . . . . . Parts Self-Destructed 10 | . . . . . 10 Prevented 6 | . . . . . 6 Kills | -11 -10 -10 -7 -5 -5 ------- Run | Yrd Mat Sub Scr Fac Upp Combat Hostiles Destroyed 14 | . . . . 4 10 Melee 8 | . . . . . 8 Guns 3 | . . . . 1 2 AOE 3 | . . . . 3 . Classes Destroyed 4 | . . . . 1 3 Swarmer 2 | . . . . . 2 Grunt 9 | . . . . 4 5 Sentry 1 | . . . . . 1 Programmer 2 | . . . . . 2 Best Kill Streak 4 | . . . . 4 4 Combat Bots Only 4 | . . . . 4 4 Max Kills in Single Turn 2 | . . . . 2 1 Gunslinging . | . . . . . . Exploded 2 | . . . . 2 . Melee 1 | . . . . . 1 Uniques/NPCs Destroyed . | . . . . . . Combat | -11 -10 -10 -7 -5 -5 -------- Run | Yrd Mat Sub Scr Fac Upp Hostile Shots Fired 275 | . . . . 39 236 Missed 88 | . . . . 12 76 Hits 187 | . . . . 27 160 Projectile 187 | . . . . 27 160 Critical Strikes 10 | . . . . 2 8 Damage Taken 3070 | . . 20 . 552 2498 Core 717 | . . 20 . 31 666 Absorbed by Shields . | . . . . . . Redirected to Shielding 17 | . . . . . 17 Ignored by Resistances 843 | . . 6 . 147 690 Core Remaining (%) 96 | 100 . . 92 . . Volleys Fired 40 | . . 3 . 19 18 Largest 2 | . . 2 . 1 1 Hottest 69 | . . 60 . 55 69 Shots Fired 43 | . . 6 . 19 18 Gun 43 | . . 6 . 19 18 Cannon . | . . . . . . Launcher . | . . . . . . Special . | . . . . . . Kinetic . | . . . . . . Thermal 21 | . . 6 . . 15 Explosive . | . . . . . . Electromagnetic 22 | . . . . 19 3 Robot Hit Streak 9 | . . . . 3 9 Robot Miss Streak 3 | . . . . 3 2 Penetration Max . | . . . . . . Secondary Targets . | . . . . . . Shots Hit Robots 55 | . . . . 13 42 Core Hits 25 | . . . . 8 17 Critical Kills . | . . . . . . Critical Parts Destroyed . | . . . . . . Critical Strikes 3 | . . . . . 3 Sever 3 | . . . . . 3 Melee Attacks 29 | . . . . . 29 Impact . | . . . . . . Slashing 29 | . . . . . 29 Piercing . | . . . . . . Sneak Attacks . | . . . . . . Combat Hostiles . | . . . . . . Follow-up Attacks . | . . . . . . Damage Inflicted 2041 | . . . . 683 1358 Guns 466 | . . . . 183 283 Cannons . | . . . . . . Explosions 500 | . . . . 500 . Melee 1075 | . . . . . 1075 Ramming . | . . . . . . Kinetic . | . . . . . . Thermal 720 | . . . . 500 220 Explosive . | . . . . . . Electromagnetic 246 | . . . . 183 63 Impact . | . . . . . . Slashing 1075 | . . . . . 1075 Piercing . | . . . . . . Highest Corruption . | . . . . . . Average Corruption . | . . . . . . Corruption Purged . | . . . . . . Corruption Blocked 1 | . . . . . 1 Overload Shots . | . . . . . . Overflow Damage 57 | . . . . 30 27 Projectiles . | . . . . . . Explosions 30 | . . . . 30 . Melee 27 | . . . . . 27 Knockbacks . | . . . . . . Impact . | . . . . . . Kinetic . | . . . . . . Secondary . | . . . . . . Self-Inflicted Damage 147 | . . . . 147 . Shots 3 | . . . . 3 . Rammed . | . . . . . . Targets Rammed 1 | . . . . . 1 Kicked 1 | . . . . . 1 Crushed . | . . . . . . Highest Temperature 98 | . . . . 98 25 Average Temperature 40 | . . . . 45 11 Received Heat Transfer 1287 | . . . . 279 1008 Siege Activations . | . . . . . . Martial Activations . | . . . . . . Shielding Activations . | . . . . . . Robots Disrupted . | . . . . . . Combat Hostiles . | . . . . . . Robots Corrupted . | . . . . . . Combat Hostiles . | . . . . . . Parts Fried . | . . . . . . Impact Corruptions . | . . . . . . Robots Melted . | . . . . . . Combat Hostiles . | . . . . . . Parts Melted . | . . . . . . Heat Transferred 807 | . . . . 400 407 Parts Sabotaged . | . . . . . . Parts Stolen . | . . . . . . Parts Stripped . | . . . . . . Power Chain Reactions 2 | . . . . 2 . Alert | -11 -10 -10 -7 -5 -5 ------- Run | Yrd Mat Sub Scr Fac Upp Maximum Alert Level . | . . . . . . Low Security (%) 100 | 100 100 . . 100 . Level 1 . | . . . . . . Level 2 . | . . . . . . Level 3 . | . . . . . . Level 4 . | . . . . . . Level 5 . | . . . . . . High Security . | . . . . . . Max Security . | . . . . . . Peak Influence 156 | . . . . 156 . Initial . | . . . . . . Average 27 | . . . . 39 . Influence Increases 611 | . . . . 181 430 Destroy 0b10 Robot/C 280 | . . . . 80 200 Destroy Leader 30 | . . . . 10 20 Disable Machine 18 | . . . . 18 . Destroy Structure 58 | . . . . 58 . Lose Combat Pursuer 225 | . . . . 15 210 Influence Decreases 586 | . . . . 105 481 Entered New Map 35 | . . . . . 35 Time Decay 381 | . . . . 70 311 Lost Part 170 | . . . . 35 135 Squads Dispatched 1 | . . . . 1 . Investigation 1 | . . . . 1 . Extermination . | . . . . . . Reinforcement . | . . . . . . Assault . | . . . . . . Garrison . | . . . . . . Intercept . | . . . . . . Searches Triggered . | . . . . . . Construction Impeded . | . . . . . . Haulers Reinforced . | . . . . . . Active Scanning Responses . | . . . . . . Cargo Convoy Interrupts . | . . . . . . Stealth | -11 -10 -10 -7 -5 -5 --------- Run | Yrd Mat Sub Scr Fac Upp Distress Signals 1 | . . . . 1 . Communications Jammed . | . . . . . . Distress Signals . | . . . . . . Times Spotted 37 | . . 2 . 9 26 Peak Tracking Total 8 | . . 2 . 4 8 Tactical Retreats 11 | . . . . 1 10 Traps | -11 -10 -10 -7 -5 -5 ------- Run | Yrd Mat Sub Scr Fac Upp Traps Triggered 1 | . . . . 1 . Indirectly . | . . . . . . Trap Hack Attempts . | . . . . . . Triggered . | . . . . . . Disarmed . | . . . . . . Reprogrammed . | . . . . . . Reused . | . . . . . . Traps Extracted . | . . . . . . Installed . | . . . . . . Triggered . | . . . . . . Machines | -11 -10 -10 -7 -5 -5 ---------- Run | Yrd Mat Sub Scr Fac Upp Machines Disabled 2 | . . . . 2 . Max in Single Turn 2 | . . . . 2 . Machines Repaired . | . . . . . . Machines Dismantled . | . . . . . . Machines Sabotaged . | . . . . . . Overloaded Fab Kills . | . . . . . . Hacking | -11 -10 -10 -7 -5 -5 --------- Run | Yrd Mat Sub Scr Fac Upp Machines Accessed . | . . . . . . Terminals . | . . . . . . Fabricators . | . . . . . . Repair Stations . | . . . . . . Recycling Units . | . . . . . . Scanalyzers . | . . . . . . Garrison Access . | . . . . . . Total Hacks . | . . . . . . Successful . | . . . . . . Failed . | . . . . . . Catastrophic . | . . . . . . Database Lockouts . | . . . . . . Manual . | . . . . . . Terminals . | . . . . . . Fabricators . | . . . . . . Repair Stations . | . . . . . . Recycling Units . | . . . . . . Scanalyzers . | . . . . . . Garrison Access . | . . . . . . Terminal Hacks . | . . . . . . Fabricator Hacks . | . . . . . . Repair Station Hacks . | . . . . . . Recycling Unit Hacks . | . . . . . . Scanalyzer . | . . . . . . Garrison Access Hacks . | . . . . . . Unauthorized Hacks . | . . . . . . Terminals . | . . . . . . Fabricators . | . . . . . . Repair Stations . | . . . . . . Recycling Units . | . . . . . . Scanalyzers . | . . . . . . Garrison Access . | . . . . . . Data Cores Recovered . | . . . . . . Used . | . . . . . . Hacking Detections . | . . . . . . Full Trace Events . | . . . . . . Feedback Events . | . . . . . . Feedback Blocked . | . . . . . . Robot Schematics Acquired . | . . . . . . Robots Built . | . . . . . . Authchips . | . . . . . . Time . | . . . . . . Total Robot Build Rating . | . . . . . . Part Schematics Acquired . | . . . . . . Parts Built . | . . . . . . Authchips . | . . . . . . Time . | . . . . . . Total Part Build Rating . | . . . . . . Parts Repaired . | . . . . . . Time . | . . . . . . Parts Recycled . | . . . . . . Recycled Matter . | . . . . . . Retrieved Matter . | . . . . . . Retrieved Components . | . . . . . . Parts Scanalyzed . | . . . . . . Part Schematics Acquired . | . . . . . . Parts Damaged . | . . . . . . Bothacking | -11 -10 -10 -7 -5 -5 ------------ Run | Yrd Mat Sub Scr Fac Upp Used RIF Installer . | . . . . . . Robots Hacked . | . . . . . . Non-combat . | . . . . . . Combat . | . . . . . . Robot Hacks Applied . | . . . . . . Relay Couplers Released . | . . . . . . Fabnet Peak Effective % . | . . . . . . Robots Rewired . | . . . . . . Allies Hacked . | . . . . . . Hacks Repelled . | . . . . . . Allies | -11 -10 -10 -7 -5 -5 -------- Run | Yrd Mat Sub Scr Fac Upp Total Allies . | . . . . . . Largest Group . | . . . . . . Highest-Rated Group . | . . . . . . Highest-Rated Ally . | . . . . . . Total Orders . | . . . . . . Ally Attacks . | . . . . . . Total Damage . | . . . . . . Kills . | . . . . . . Allies Corrupted . | . . . . . . Allies Melted . | . . . . . . Intel | -11 -10 -10 -7 -5 -5 ------- Run | Yrd Mat Sub Scr Fac Upp Active Infowar (turns) 1038 | . . . . 328 710 Optics 1038 | . . . . 328 710 Robot Analysis Total . | . . . . . . Derelict Logs Recovered 2 | . . 1 . . 1 Drone Launches . | . . . . . . Drone Recoveries . | . . . . . . Exploration | -11 -10 -10 -7 -5 -5 ------------- Run | Yrd Mat Sub Scr Fac Upp Turns Passed 2206 | 67 89 482 511 347 710 Spaces Moved 1354 | 44 55 292 311 184 468 Core 12 | 12 . . . . . Treads 850 | 32 55 292 311 160 . Legs 131 | . . . . 24 107 Wheels . | . . . . . . Hover 229 | . . . . . 229 Flight 132 | . . . . . 132 Fastest Speed 35 | 50 160 160 160 120 35 Average Speed 144 | 130 160 160 160 154 119 Slowest Speed 195 | 160 160 160 160 160 195 Overloaded Moves . | . . . . . . Propulsion Burnouts . | . . . . . . Robots Hopped 1 | . . . . . 1 Potential Cave-ins . | . . . . . . Cave-ins Triggered . | . . . . . . Exploration Rate (%) 19 | 3 16 14 29 7 46 Regions Visited 5 Branch Regions 3 Pre-discovered Areas 1 | . . 1 . . . Known Exits Taken 1 | . . . . 1 . Unknown Exits Taken 4 | 1 1 1 1 . . Scrap Searched 3 | . . . 2 . 1 Spaces Dug . | . . . . . . Terrain Destroyed 26 | . . . . 26 . Melee . | . . . . . . Projectile . | . . . . . . AOE 26 | . . . . 26 . Terrain Rammed . | . . . . . . Walls Destroyed . | . . . . . . Machines Disabled . | . . . . . . Actions | -11 -10 -10 -7 -5 -5 --------- Run | Yrd Mat Sub Scr Fac Upp Total 1537 | 54 56 303 327 226 571 Wait 27 | 2 . . . . 25 Move 1347 | 43 54 291 310 183 466 Hop 1 | . . . . . 1 Pick Up 43 | 5 2 5 5 12 14 Fast Attach 2 | . . . 1 1 . Attach 32 | 4 . 3 2 9 14 Detach . | . . . . . . Swap 4 | . . 1 2 1 . Drop 11 | . . . 7 1 3 Fire 40 | . . 3 . 19 18 Melee 29 | . . . . . 29 Ram . | . . . . . . Kick 1 | . . . . . 1 Crush . | . . . . . . Escape Stasis . | . . . . . . Rewire . | . . . . . . Trap . | . . . . . . Miscellaneous . | . . . . . . Route ------- -11/Scrapyard -10/Materials -10/Subcaves -7/Scraptown -5/Factory -5/Upper Caves History --------- Turn | Location | Event 6 | -11/Scrapyard | Discovered new exit (range 15) 68 | -11/Scrapyard | Entered Materials 69 | -10/Materials | Met a group of wandering Federalists 154 | -10/Materials | Discovered new exit (range 3) 157 | -10/Materials | Entered Subcaves 158 | -10/Subcaves | Continued accompanying wandering Federalists (6) 158 | -10/Subcaves | Approached by a straggling Scientist 232 | -10/Subcaves | Learned location of Zion (-6) 313 | -10/Subcaves | Build established: Mutant 639 | -10/Subcaves | Entered Scraptown 1145 | -7/Scraptown | Discovered new exit (range 3) 1150 | -7/Scraptown | Entered Factory 1150 | -5/Factory | Evolved 10 slots: Power x1, Propulsion x2, Utility x7 1460 | -5/Factory | Build established: Hacker-Mutant 1488 | -5/Factory | Discovered new exit (range 7) 1495 | -5/Factory | Identified exit to Upper Caves 1497 | -5/Factory | Entered Upper Caves 1501 | -5/Upper Caves | Attracted the attention of an 0b10 checkpoint 1574 | -5/Upper Caves | Lost 6 parts (2n2u2w) 2045 | -5/Upper Caves | Attracted the attention of an 0b10 base 2053 | -5/Upper Caves | Core integrity fell below 50% 2088 | -5/Upper Caves | Lost 5 parts (1p1n1u2w) 2163 | -5/Upper Caves | Learned Factory stockpile data 2207 | -5/Upper Caves | Self-destructed Last Messages --------------- Slug penetrates Wall. Antigrav System destroyed. Critical hit (Burn: +37). Acquired 10 matter. Hvy. Laser destroyed. Acquired 5 matter. Acquired Hvy. Laser. S-27 Virus destroyed. Acquired Lgt. Nuclear Core. Acquired 20 matter. Penetrated by Slug. Acquired derelict log, extracted data. Data stored: Factory stockpile data. Penetrated by Slug. Lgt. Nuclear Core destroyed. Slug penetrates Wall. Adv. Heat Sink destroyed. Penetrated by Slug. Hvy. Laser destroyed. Slug penetrates Wall. Map ----- +----------------------------------------------------+ | | | | | ?????????????????????????????????????????????????? | | ?????????????????????????????????????????????????? | | ?????????????????????????????????????????????????? | | ?????????????????????????????????????????????????? | | ?????????????????????????????????????????????????? | | ?????????????????????????????????????????????????? | | ?????????????????????????????????????????????????? | | ?????????????????????????????????????????????????? | | ?????????????????????????????????????????????????? | | ?????????????????????????????????????????????????? | | ?????????????????????????????????????????????????? | | ?????????????????????????????????????????????????? | | ?????????????????????????????????????????????????? | | ?????????????????????????????????????????????????? | | #####?????????????###???###??????????????????????? | | ##???????????# #???#;###????????????????????? | | #??????##??# #???#; ;????????????????????? | | ##????? ### ##??# #????????????????????? | | ##??? ? #??# #????????????????????? | | ##?? ?? #??# #????????????????????? | | #?# #?? #?## #????????????????????? | | ### ## #??## ##????????????????????? | | #+#### #### #?####????????????????? | | "# @#### ##???????????????? | | "# ### Y### ###?????????????? | | "# #?# ## #?????????????? | | "# #### ## # #?????????????? | | "# #?# #?#### ## ##?????????????? | | / #?# #?????#### ##??????????????? | | # ###?# #?????????# #???????????????? | | "T""# # #???##??????????# #???????????????? | | """"# ## #??????????????# #???????????????? | | ###### ## #?????????????# #???????????????? | | #? #?????????????# #???????????????? | | #?# ##?????????????# #???????????????? | | ####### ##??????????????# #???????????????? | | #????# ###?????????????# ##??????????????? | | ##??## ????????????## #??????????????? | | ##?# #????????????# #??????????????? | | #??? #???????????## #??????????????? | | #????# #?????????### ##??????????????? | | #####?# ##???###### ##???????????????? | | ###### #### ##### #????????????????? | | ##???# ## ##" #????????????????? | | ###???# ##????????????????? | | #???# #?????????????????? | | ##??# % ### #????????????????? | | %#####%####?# ## #????????????????? | +----------------------------------------------------+ Best States ------------- Heat Dissipation 59 Energy Generation 18 Energy Capacity 160 Matter Stores 300 Matter Capacity 300 Sight Range 22 Terrain Scan Density 10 Corruption Block 45 Armor Coverage 225 Resistance: KI 20 Resistance: TH 20 Resistance: EX 20 Resistance: EM 20 Resistance: I 20 Resistance: S 20 Resistance: P 20 Utility Shielding 33 Evasion (%) 63 Melee Accuracy 8 Recoil Reduction 2 Offensive Hacking 22 Item Schematics ----------------- None Robot Schematics ------------------ None Fabricated ------------ Nothing Repaired ---------- Nothing Alien Tech Used ----------------- None Achievements -------------- None Challenges ------------ None Game ------ Seed ReflexGlidesysNanovents Manual? 0 Play Time 00:24:47 Cumulative 18.8 hours Start 2025.07.19 @ 22:55:10 End 2025.07.19 @ 23:21:42 Sessions 1 Manual Loads 0 Difficulty Adventurer Special Mode None Game No. 11 Rogue 0 Adventurer 11 Explorer 0 Win Type - Total 0 Types 0/0/0/0/0/0/0/0/0/0 Lore% 10 Gallery% 22 Achievement% 21 Wizard Run 0 Options --------- Layout 0 ASCII 0 Keyboard 0 Movement Mouse Keybinds 0 Fullscreen 2 Font 18/SmallcapsGlow Map View 76x50 Zoom Use 0% Tactical HUD 0 Map Filters NONE Filters NONE Steam 1 RUN: 8bc4b1d0-22ac-4af3-971c-eddc10a18d67